bitfinex/quotes_SOLUSD_20251218
["timestamp","ask_amount","ask_price","bid_price","bid_amount"]
[1766073114703,7.20340117,128.06,128.01,17.63107413]
[1766073114917,7.20340117,128.06,128.01,11.09767296]
[1766073115081,7.20340117,128.06,128.01,17.63107413]
[1766073115408,11.92840345,128.05,128.0,0.66]
[1766073115697,15.76340117,128.05,128.0,0.66]
[1766073116082,0.67,128.04,128.0,0.66]
[1766073116286,11.92964216,128.04,128.0,0.66]
[1766073116505,0.67,128.04,127.99,6.53340117]
[1766073116807,19.66767296,128.05,128.0,7.19340117]
[1766073117007,4.72632341,128.04,128.0,7.19340117]
[1766073117209,26.20107413,128.05,128.0,7.19340117]
[1766073117386,5.39710415,128.04,128.0,6.53340117]
[1766073117702,5.39710415,128.04,127.98,0.66]
[1766073117703,4.7276757,128.03,127.98,0.66]
[1766073117906,0.67,128.03,127.98,0.66]
[1766073118195,7.20340117,128.03,127.98,7.19340117]
[1766073118421,0.67,128.03,127.98,7.19340117]
[1766073118574,7.20340117,128.03,127.98,0.66]
[1766073118775,6.53340117,128.02,127.95,18.99767296]
[1766073119006,7.20340117,128.01,127.96,7.19340117]
[1766073119202,7.20340117,128.01,127.96,15.00831661]
[1766073119979,7.20340117,128.01,127.97,0.66]
[1766073120180,0.67,128.02,127.97,7.19340117]
[1766073120700,7.20340117,128.02,127.97,7.19340117]
[1766073120898,6.53340117,128.01,127.97,0.66]
[1766073121089,7.19340117,128.0,127.95,0.71]
[1766073121493,0.66,128.0,127.95,8.52538772]
[1766073121691,17.28085624,128.03,127.97,0.71]
[1766073121906,8.56,128.01,127.99,0.71]
[1766073122402,0.66,128.04,128.0,7.24340117]
[1766073122590,7.19340117,128.06,128.01,7.24340117]
[1766073123179,25.37823555,128.07,128.02,6.53340117]
[1766073123180,8.76,128.07,128.02,6.53340117]
[1766073123384,15.95340117,128.07,128.02,7.24340117]
[1766073123810,15.95340117,128.07,128.02,0.71]
[1766073124901,0.2,128.07,128.03,6.53340117]
[1766073125213,0.2,128.07,128.04,7.24340117]
[1766073126307,0.2,128.07,128.0,27.80761788]
[1766073126308,0.2,128.07,128.05,7.24340117]
[1766073126620,6.53340117,128.09,128.04,0.71]
[1766073126802,7.19340117,128.07,128.02,7.24340117]
[1766073127106,7.19340117,128.08,128.03,0.71]
[1766073127291,6.53340117,128.07,128.03,0.71]
[1766073127498,8.80994492,128.1,128.01,18.9593015]
[1766073127499,7.19340117,128.06,128.01,18.9593015]
[1766073127806,7.19340117,128.06,128.01,0.71]
[1766073127807,6.53340117,128.05,128.01,0.71]
[1766073127991,16.97107413,128.07,128.02,0.71]
[1766073128313,16.97107413,128.07,128.02,7.24340117]
[1766073128484,7.19340117,128.06,128.02,0.71]
[1766073128681,0.66,128.06,128.02,7.24340117]
[1766073128994,0.66,128.06,128.02,15.0545793]
[1766073129307,6.53340117,128.07,128.02,15.0545793]
[1766073129504,6.53340117,128.09,128.04,7.24340117]
[1766073130210,7.19340117,128.09,128.04,0.71]
[1766073130811,7.19340117,128.09,128.04,7.24340117]
[1766073130996,0.66,128.09,128.05,6.53340117]
[1766073131196,0.66,128.09,128.05,0.71]
[1766073131391,7.19340117,128.09,128.05,0.71]
[1766073131707,6.53340117,128.08,128.03,14.34401848]
[1766073132018,6.53340117,128.08,128.04,0.71]
[1766073132220,6.53340117,128.09,128.05,0.71]
[1766073132433,8.54,128.1,128.05,0.71]
[1766073132603,15.07340117,128.1,128.05,0.71]
[1766073132806,6.53340117,128.09,128.05,0.71]
[1766073133637,6.53340117,128.08,128.02,29.96475111]
[1766073133931,7.20340117,128.08,128.04,0.66]
[1766073134601,6.53340117,128.08,128.04,0.66]
[1766073134803,6.53340117,128.08,128.04,8.47000255]
[1766073135628,6.53340117,128.09,128.04,7.8099541]
[1766073135840,6.53340117,128.09,128.05,0.66]
[1766073136044,6.53340117,128.08,128.05,0.66]
[1766073137229,11.10767296,128.12,128.06,0.66]
[1766073137532,6.53340117,128.09,128.05,0.66]
[1766073137734,6.53340117,128.09,128.02,8.80994492]
[1766073137735,6.53340117,128.08,128.02,6.53340117]
[1766073138030,6.53340117,128.07,128.04,0.66]
[1766073138401,8.54,128.09,128.04,7.81005048]
[1766073138402,15.07340117,128.09,128.04,7.81005048]
[1766073138605,8.54,128.09,128.06,0.66]
[1766073138837,6.53340117,128.08,128.04,0.66]
[1766073139041,6.53340117,128.07,128.04,0.66]
[1766073139617,0.67,128.08,128.04,0.66]
[1766073139814,6.53340117,128.07,128.04,0.66]
[1766073140606,6.53340117,128.06,128.04,0.66]
[1766073140840,6.53340117,128.06,128.0,15.34334609]
[1766073140841,6.53340117,128.05,128.0,0.66]
[1766073141043,6.53340117,128.05,128.01,8.47179253]
[1766073141212,6.53340117,128.05,128.01,7.81179253]
[1766073141411,6.53340117,128.05,128.02,0.66]
[1766073142805,6.53340117,128.06,128.02,8.47113708]
[1766073143126,6.53340117,128.06,128.02,7.81113708]
[1766073143322,6.53340117,128.06,128.02,8.47113708]
[1766073144037,6.53340117,128.06,128.02,7.81113708]
[1766073144211,6.53340117,128.06,128.03,0.66]
[1766073144408,6.53340117,128.07,128.03,0.66]
[1766073144611,102.97,128.12,128.06,7.8088396]
[1766073144819,102.97,128.12,128.04,6.53340117]
[1766073144820,6.53340117,128.08,128.04,8.46986279]
[1766073145023,6.53340117,128.07,128.04,8.46986279]
[1766073145221,8.54,128.11,128.04,0.66]
[1766073145222,6.53340117,128.06,128.04,0.66]
[1766073145528,6.53340117,128.07,128.04,0.66]
[1766073145910,6.53340117,128.08,128.04,8.47005195]
[1766073146626,0.2,128.13,128.08,0.66]
[1766073146824,6.73340117,128.13,128.08,0.66]
[1766073147540,0.2,128.13,128.08,0.66]
[1766073147831,2.63761194,128.13,128.08,0.66]
[1766073148056,2.43761194,128.12,128.08,0.66]
[1766073149435,6.53062244,128.12,128.08,0.66]
[1766073149637,6.53062244,128.12,128.03,7.81039306]
[1766073149638,0.67,128.08,128.03,7.81039306]
[1766073149808,6.53062244,128.05,128.02,0.66]
[1766073150331,6.53062244,128.06,128.02,8.47121467]
[1766073151040,6.53062244,128.06,128.03,0.66]
[1766073151510,10.62128706,128.06,128.03,0.66]
[1766073153036,9.21,128.08,128.03,0.66]
[1766073153335,10.62128706,128.07,128.04,0.66]
[1766073153841,10.62128706,128.07,128.02,7.81103121]
[1766073154021,11.29128706,128.07,128.03,0.66]
[1766073154335,10.62128706,128.07,128.04,0.66]
[1766073154722,18.24412909,128.1,128.04,0.66]
[1766073154723,10.43767296,128.1,128.04,0.66]
[1766073154922,23.45857606,128.14,128.06,0.66]
[1766073154923,4.72877608,128.09,128.06,0.66]
[1766073155145,11.29128706,128.11,128.07,0.66]
[1766073155321,4.73113115,128.1,128.07,0.66]
[1766073155517,4.73113115,128.09,128.07,0.66]
[1766073155724,11.29128706,128.11,128.07,0.66]
[1766073155925,4.73049108,128.1,128.07,0.66]
[1766073156228,0.67,128.11,128.07,0.66]
[1766073156535,10.62128706,128.11,128.07,0.66]
[1766073156729,10.62128706,128.12,128.07,0.66]
[1766073156934,10.62128706,128.11,128.07,0.66]
[1766073157130,10.62128706,128.11,128.07,8.46780012]
[1766073158046,11.29128706,128.12,128.07,8.46780012]
[1766073158230,10.62128706,128.11,128.07,8.46780012]
[1766073158723,111.04,128.13,128.07,7.80780012]
[1766073158930,10.62128706,128.12,128.08,0.66]
[1766073159427,10.62128706,128.11,128.07,7.80763799]
[1766073159630,11.29128706,128.12,128.08,0.66]
[1766073159938,0.2,128.13,128.1,0.66]
[1766073160144,0.2,128.13,128.11,0.66]
[1766073160339,0.2,128.15,128.11,10.62128706]
[1766073160538,10.82128706,128.15,128.1,21.71896002]
[1766073160733,10.82128706,128.15,128.11,0.66]
[1766073161438,0.2,128.15,128.12,0.66]
[1766073161921,0.2,128.16,128.12,0.66]
[1766073162422,26.9790686,128.19,128.14,11.31128706]
[1766073162423,10.82128706,128.19,128.14,11.31128706]
[1766073162743,11.48128706,128.19,128.14,0.69]
[1766073162941,0.86,128.19,128.14,0.69]
[1766073163240,10.82128706,128.19,128.15,0.69]
[1766073163747,0.2,128.19,128.15,0.69]
[1766073163941,11.48128706,128.19,128.15,0.69]
[1766073164113,10.82128706,128.19,128.15,7.80309883]
[1766073164320,0.2,128.19,128.16,0.69]
[1766073164738,0.2,128.19,128.15,10.62128706]
[1766073164940,0.2,128.19,128.15,11.31128706]
[1766073165323,0.2,128.19,128.15,1.31128706]
[1766073166124,0.2,128.19,128.15,0.69]
[1766073167746,0.2,128.19,128.15,8.49314861]
[1766073167928,0.2,128.19,128.15,19.11443567]
[1766073168472,0.2,128.19,128.15,8.49314861]
[1766073168777,10.62128706,128.18,128.13,10.43767296]
[1766073168949,0.66,128.17,128.13,29.55319528]
[1766073169143,11.28128706,128.17,128.12,10.62128706]
[1766073169358,11.28128706,128.15,128.11,0.69]
[1766073169553,0.66,128.15,128.11,19.11674305]
[1766073169866,0.66,128.15,128.11,8.49545599]
[1766073170338,11.26361101,128.17,128.12,0.69]
[1766073170976,0.66,128.17,128.12,11.29361101]
[1766073171840,0.66,128.17,128.12,19.09819065]
[1766073172044,0.86,128.19,128.14,10.60361101]
[1766073172260,0.86,128.19,128.14,11.29361101]
[1766073172668,0.66,128.18,128.13,0.69]
[1766073172852,0.66,128.17,128.13,0.69]
[1766073173048,0.66,128.17,128.13,11.29361101]
[1766073173463,11.46361101,128.19,128.14,0.69]
[1766073173657,0.66,128.18,128.14,0.69]
[1766073173862,11.26361101,128.18,128.13,18.40811805]
[1766073174166,11.26361101,128.18,128.13,11.29361101]
[1766073174471,0.66,128.15,128.11,7.80548658]
[1766073174770,0.66,128.15,128.1,21.73128397]
[1766073174942,0.66,128.14,128.1,0.69]
[1766073176057,10.60361101,128.15,128.06,8.80994492]
[1766073176058,0.66,128.11,128.06,7.80844276]
[1766073176257,11.26361101,128.11,128.06,8.49844276]
[1766073176859,8.54,128.12,128.07,19.10180907]
[1766073176860,9.2,128.12,128.07,19.10180907]
[1766073177060,19.80361101,128.12,128.07,19.10180907]
[1766073177374,11.26361101,128.12,128.07,8.49819806]
[1766073177552,11.26361101,128.12,128.07,0.69]
[1766073177743,10.60361101,128.11,128.06,7.80854058]
[1766073177948,0.66,128.1,128.06,7.80854058]
[1766073178174,0.66,128.1,128.06,8.49854058]
[1766073178366,0.66,128.1,128.06,19.10215159]
[1766073178562,0.66,128.1,128.06,8.49854058]
[1766073178763,0.66,128.1,128.04,18.97767296]
[1766073178764,11.26361101,128.09,128.04,18.24721255]
[1766073178970,0.66,128.08,128.04,7.80953959]
[1766073180855,0.66,128.07,128.03,0.69]
[1766073181673,0.66,128.07,128.03,8.50059397]
[1766073182477,19.51498377,128.11,128.03,8.50059397]
[1766073182478,10.60361101,128.12,128.07,0.72]
[1766073182684,21.70128397,128.11,128.06,10.60361101]
[1766073182854,0.66,128.1,128.05,11.32361101]
[1766073183256,10.60361101,128.13,128.08,0.72]
[1766073183550,10.60361101,128.12,128.06,11.32361101]
[1766073183751,10.60361101,128.12,128.07,10.60361101]
[1766073183951,10.60361101,128.12,128.06,11.32361101]
[1766073184152,9.78789857,128.12,128.06,11.32361101]
[1766073184450,8.54,128.13,128.08,0.72]
[1766073184654,19.14361101,128.13,128.08,11.32361101]
[1766073184962,10.60361101,128.11,128.05,11.32361101]
[1766073185354,0.66,128.11,128.06,18.41244434]
[1766073185555,0.66,128.11,128.07,0.72]
[1766073185883,11.09767296,128.14,128.08,10.60361101]
[1766073186055,18.97767296,128.14,128.08,11.32361101]
[1766073186255,0.66,128.13,128.08,19.13093157]
[1766073186687,11.26361101,128.13,128.08,19.13093157]
[1766073186983,0.66,128.13,128.08,19.13093157]
[1766073187359,0.66,128.13,128.09,0.72]
[1766073187587,19.50589268,128.17,128.12,11.32361101]
[1766073187588,0.66,128.17,128.12,11.32361101]
[1766073187897,0.66,128.17,128.12,10.60361101]
[1766073188057,0.66,128.18,128.13,0.72]
[1766073188379,10.60361101,128.16,128.11,8.54]
[1766073188554,0.66,128.16,128.11,17.06568436]
[1766073188759,11.26361101,128.16,128.11,17.06568436]
[1766073188957,0.66,128.18,128.13,10.60361101]
[1766073189159,0.66,128.18,128.13,11.32361101]
[1766073189379,10.80361101,128.19,128.13,18.40796439]
[1766073189680,0.86,128.19,128.14,11.32361101]
[1766073190680,0.86,128.19,128.14,19.12751488]
[1766073190886,0.86,128.19,128.15,0.72]
[1766073191184,0.2,128.19,128.15,0.72]
[1766073191481,10.60361101,128.18,128.15,0.72]
[1766073191679,10.80361101,128.19,128.15,0.72]
[1766073192791,10.80361101,128.19,128.16,0.71]
[1766073192792,0.2,128.19,128.16,0.71]
[1766073194191,0.92,128.19,128.14,8.51376957]
[1766073194488,10.60361101,128.16,128.13,8.51435536]
[1766073194862,11.32361101,128.16,128.12,7.80494257]
[1766073195063,11.32361101,128.16,128.12,8.51494257]
[1766073195280,10.60361101,128.17,128.13,8.51454524]
[1766073195476,10.80361101,128.19,128.14,0.71]
[1766073195679,0.2,128.19,128.14,0.71]
[1766073195886,10.60361101,128.18,128.14,0.71]
[1766073196873,10.60361101,128.18,128.14,8.51389619]
[1766073197297,10.60361101,128.18,128.15,0.71]
[1766073197796,11.32361101,128.17,128.13,8.5145339]
[1766073197997,10.60361101,128.17,128.13,8.5145339]
[1766073198173,10.60361101,128.18,128.13,8.5145339]
[1766073198490,10.60361101,128.17,128.13,0.71]
[1766073198681,8.00104043,128.19,128.11,8.51566493]
[1766073198682,10.60361101,128.15,128.11,8.51566493]
[1766073199393,0.72,128.16,128.11,8.51566493]
[1766073199685,10.60361101,128.15,128.11,8.51566493]
[1766073199892,10.60361101,128.13,128.1,7.80624913]
[1766073200098,10.60361101,128.13,128.09,18.95437359]
[1766073200488,10.60361101,128.13,128.1,7.80629243]
[1766073200691,10.60361101,128.13,128.1,8.51629243]
[1766073200884,10.60361101,128.13,128.1,0.71]
[1766073201192,10.60361101,128.12,128.09,7.80674421]
[1766073201376,10.60361101,128.12,128.09,8.51674421]
[1766073201577,10.60361101,128.12,128.09,8.51698961]
[1766073201981,0.72,128.15,128.09,7.80698961]
[1766073202200,11.32361101,128.14,128.1,0.71]
[1766073202892,10.60361101,128.13,128.1,0.71]
[1766073203195,10.51361102,128.11,128.08,7.80733724]
[1766073203391,10.60361101,128.11,128.08,7.80733724]
[1766073203976,10.56194637,128.11,128.08,7.80733724]
[1766073204194,10.60361101,128.11,128.08,7.80733724]
[1766073204883,10.60361101,128.1,128.07,8.54]
[1766073205194,0.72,128.11,128.07,9.25]
[1766073205407,11.32361101,128.11,128.07,9.25]
[1766073206403,0.72,128.11,128.07,9.25]
[1766073206600,10.60361101,128.1,128.07,8.54]
[1766073206899,10.60361101,128.1,128.06,18.95614638]
[1766073207094,0.72,128.11,128.06,18.95614638]
[1766073207285,10.60361101,128.1,128.06,18.95614638]
[1766073207487,11.32361101,128.11,128.06,29.55975739]
[1766073207692,10.60361101,128.09,128.06,0.71]
[1766073208009,11.32361101,128.09,128.05,17.05914063]
[1766073208902,10.60361101,128.08,128.05,17.05914063]
[1766073209106,10.60361101,128.09,128.05,17.05914063]
[1766073209311,10.60361101,128.06,128.03,9.25]
[1766073209481,11.32361101,128.07,128.03,8.52034753]
[1766073210703,27.32027229,128.11,128.06,0.71]
[1766073210704,10.60361101,128.1,128.06,0.71]
[1766073210885,11.32361101,128.1,128.06,0.71]
[1766073211208,10.60361101,128.09,128.06,0.71]
[1766073211402,10.60361101,128.08,128.04,16.34986454]
[1766073211704,11.32361101,128.08,128.04,17.05986454]
[1766073212005,10.60361101,128.05,128.02,8.54]
[1766073212223,11.32361101,128.05,128.0,19.53041183]
[1766073212502,11.32361101,128.05,128.01,8.52171446]
[1766073212807,11.32361101,128.05,128.01,0.71]
[1766073213009,0.72,128.05,128.01,0.71]
[1766073213319,10.60361101,128.04,128.01,0.71]
[1766073213482,6.53759031,128.04,128.01,0.71]
[1766073213683,6.53759031,128.05,128.01,8.52187741]
[1766073213885,6.53759031,128.07,128.02,0.71]
[1766073214096,6.53759031,128.06,128.02,0.71]
[1766073214293,10.43767296,128.08,128.0,8.52220932]
[1766073214509,6.53759031,128.05,128.0,8.52220932]
[1766073214804,6.53759031,128.05,128.01,8.52188466]
[1766073215107,6.53759031,128.06,128.02,0.71]
[1766073215304,6.53759031,128.05,128.02,0.71]
[1766073215610,9.26,128.07,128.02,0.71]
[1766073215804,6.53759031,128.06,128.02,0.71]
[1766073216403,9.26,128.07,128.02,0.71]
[1766073216602,6.53759031,128.06,128.02,0.71]
[1766073216909,9.26,128.07,128.02,0.71]
[1766073217210,6.53759031,128.06,128.02,8.52074245]
[1766073217412,9.26,128.07,128.02,8.52074245]
[1766073217615,6.53759031,128.06,128.02,8.52074245]
[1766073219412,6.53759031,128.05,128.02,8.52074245]
[1766073220910,6.53759031,128.06,128.02,8.52074245]
[1766073222215,9.26,128.07,128.02,8.52074245]
[1766073222422,6.53759031,128.06,128.02,8.52074245]
[1766073223303,6.53759031,128.05,128.02,8.52074245]
[1766073223512,6.53759031,128.04,128.01,8.51176465]
[1766073223714,6.53759031,128.04,128.01,0.7]
[1766073224306,7.24759031,128.05,128.01,0.7]
[1766073224704,7.24759031,128.05,128.01,8.51175193]
[1766073225018,6.53759031,128.05,128.01,0.7]
[1766073225321,6.53759031,128.06,128.02,8.51091422]
[1766073225496,6.53759031,128.04,128.01,8.51159276]
[1766073225696,6.53759031,128.07,128.02,6.53759031]
[1766073226004,6.53759031,128.07,128.03,0.7]
[1766073226210,6.53759031,128.06,128.03,0.7]
[1766073226724,6.53759031,128.06,128.01,7.81159276]
[1766073226925,6.53759031,128.03,128.0,0.7]
[1766073228735,6.53759031,128.03,128.0,8.51239242]
[1766073228913,0.71,128.04,128.0,8.51239242]
[1766073229117,121.54761788,128.08,128.0,7.81239242]
[1766073229434,6.53759031,128.04,128.01,8.51167863]
[1766073230430,8.54,128.07,127.99,45.04744607]
[1766073230431,7.24759031,128.03,127.99,18.97767296]
[1766073230629,7.24759031,128.03,127.99,19.67767296]
[1766073230819,0.71,128.06,128.0,0.7]
[1766073231023,0.71,128.05,128.0,8.51218846]
[1766073231629,0.71,128.05,128.0,15.04977877]
[1766073231836,0.71,128.05,128.01,0.7]
[1766073233223,9.25,128.07,128.01,6.53759031]
[1766073233424,9.25,128.07,128.03,0.7]
[1766073233627,10.43767296,128.08,128.03,0.7]
[1766073233828,9.25,128.09,128.05,0.7]
[1766073234032,0.71,128.08,128.03,7.23759031]
[1766073234241,0.71,128.08,128.03,0.7]
[1766073236339,0.71,128.06,128.02,8.56]
[1766073236636,0.71,128.06,128.01,0.7]
[1766073236840,0.71,128.05,127.99,34.04807589]
[1766073237143,0.71,128.05,127.99,9.26]
[1766073237144,15.07759031,128.05,127.99,9.26]
[1766073237342,0.71,128.03,127.99,8.56]
[1766073238335,0.71,128.03,127.99,9.26]
[1766073239948,9.25,128.05,128.0,0.7]
[1766073241026,7.23890453,128.04,127.99,9.28]
[1766073241220,0.7,128.03,127.99,0.72]
[1766073241420,0.7,128.03,127.97,8.53411286]
[1766073241421,0.7,128.02,127.97,8.53411286]
[1766073243243,3.14184845,128.02,127.97,8.53411286]
[1766073243555,111.54,128.05,127.99,0.72]
[1766073243728,113.98184845,128.05,127.99,0.72]
[1766073243923,113.28184845,128.05,127.99,0.72]
[1766073244160,3.14184845,128.04,127.99,0.72]
[1766073244755,0.7,128.03,127.99,0.72]
[1766073246450,4.71528749,128.02,127.98,8.53356126]
[1766073246654,4.71528749,128.02,127.96,9.28]
[1766073246655,0.7,128.01,127.96,9.28]
[1766073246950,0.7,128.01,127.97,8.53428876]
[1766073249252,5.41963384,128.0,127.95,10.53767296]
[1766073249432,4.71963384,127.99,127.96,0.72]
[1766073250132,5.41963384,127.98,127.95,0.1]
[1766073250335,0.7,127.98,127.95,0.1]
[1766073250933,5.42212901,127.97,127.94,0.1]
[1766073251132,4.72212901,127.96,127.94,0.1]
[1766073251346,0.7,127.97,127.94,0.1]
[1766073251938,0.7,127.98,127.94,0.1]
[1766073252138,4.72047223,127.97,127.94,0.1]
[1766073252356,3.14184845,127.98,127.94,0.1]
[1766073252658,4.71874496,127.97,127.94,0.1]
[1766073252964,10.43767296,128.0,127.94,0.79]
[1766073253130,4.71821733,127.99,127.95,0.69]
[1766073253332,0.66,127.99,127.95,0.69]
[1766073254350,12.87952141,128.0,127.94,0.1]
[1766073254351,0.66,127.97,127.94,0.1]
[1766073254551,5.37959916,127.96,127.94,0.1]
[1766073254858,0.66,127.96,127.94,0.1]
[1766073255463,3.10184845,127.97,127.94,0.1]
[1766073255771,0.66,127.97,127.94,0.1]
[1766073256446,4.71652525,127.96,127.94,0.1]
[1766073256647,0.66,127.97,127.94,0.1]
[1766073256849,4.71733929,127.96,127.94,0.1]
[1766073257047,0.66,127.97,127.94,0.1]
[1766073258367,5.37370089,127.96,127.94,0.1]
[1766073258554,0.65,127.92,127.9,0.1]
[1766073258735,0.65,127.9,127.89,0.1]
[1766073259339,0.65,127.89,127.85,0.1]
[1766073259541,3.09184845,127.89,127.85,0.1]
[1766073259739,2.44184845,127.87,127.85,0.1]
[1766073259935,3.09184845,127.87,127.85,0.1]
[1766073260155,0.65,127.86,127.85,0.1]
[1766073260358,2.44184845,127.86,127.81,0.1]
[1766073260553,18.99767296,127.88,127.81,0.1]
[1766073260554,3.09184845,127.84,127.81,0.1]
[1766073260884,3.09184845,127.84,127.78,0.79]
[1766073260885,0.45,127.81,127.78,0.1]
[1766073261070,2.89184845,127.81,127.78,0.1]
[1766073261274,18.71210029,127.81,127.78,0.1]
[1766073261572,6.56344846,127.79,127.77,0.1]
[1766073261952,10.43767296,127.82,127.77,0.79]
[1766073262193,15.12344846,127.81,127.77,0.79]
[1766073262759,15.12344846,127.83,127.79,0.69]
[1766073263173,8.56,127.83,127.79,0.69]
[1766073263381,6.56344846,127.81,127.77,0.79]
[1766073263755,6.56344846,127.81,127.78,0.69]
[1766073263955,6.56344846,127.81,127.77,0.1]
[1766073264151,6.56344846,127.81,127.77,0.79]
[1766073264362,6.56344846,127.82,127.78,7.82566344]
[1766073264577,6.56344846,127.82,127.78,8.51566344]
[1766073264759,8.56,127.85,127.81,0.69]
[1766073265180,15.12344846,127.85,127.81,0.69]
[1766073265354,0.45,127.86,127.81,0.69]
[1766073265557,6.56344846,127.85,127.81,0.69]
[1766073266163,6.56344846,127.84,127.81,0.69]
[1766073266558,6.56344846,127.84,127.79,0.69]
[1766073266784,0.45,127.85,127.79,0.69]
[1766073266785,6.56344846,127.83,127.79,0.69]
[1766073268458,6.56344846,127.82,127.79,0.69]
[1766073268973,6.56344846,127.81,127.77,0.79]
[1766073269168,6.56344846,127.8,127.77,0.79]
[1766073269365,6.56344846,127.79,127.77,0.1]
[1766073269765,6.56344846,127.78,127.77,0.1]
[1766073269965,6.56344846,127.78,127.75,0.89]
[1766073270165,6.56344846,127.77,127.75,0.89]
[1766073271089,6.56344846,127.78,127.75,0.89]
[1766073271264,8.56,127.79,127.75,0.89]
[1766073271464,6.56344846,127.77,127.75,0.89]
[1766073271784,6.56344846,127.77,127.75,0.2]
[1766073272187,6.56344846,127.76,127.75,0.2]
[1766073272373,6.56344846,127.75,127.71,9.25]
[1766073272782,6.56344846,127.74,127.71,0.69]
[1766073272980,6.56344846,127.74,127.69,5.25546693]
[1766073272981,6.56344846,127.72,127.69,5.25546693]
[1766073273162,6.56344846,127.7,127.67,0.69]
[1766073273371,6.56344846,127.69,127.65,0.69]
[1766073273790,6.56344846,127.7,127.66,0.69]
[1766073275270,6.56344846,127.69,127.66,0.69]
[1766073275587,10.68177334,127.7,127.66,0.69]
[1766073275892,10.68177334,127.7,127.66,8.52326408]
[1766073276076,8.56,127.71,127.66,8.52326408]
[1766073276274,10.68177334,127.7,127.66,8.52326408]
[1766073276761,8.56,127.71,127.63,7.83489705]
[1766073276762,10.68177334,127.67,127.63,7.83489705]
[1766073276962,10.68177334,127.67,127.63,8.52489705]
[1766073277166,10.68177334,127.67,127.63,0.69]
[1766073277370,19.24177334,127.7,127.66,0.69]
[1766073277575,19.24177334,127.7,127.66,8.52327828]
[1766073277767,8.56,127.71,127.67,0.69]
[1766073277991,10.68177334,127.73,127.68,11.37177334]
[1766073278187,19.24177334,127.73,127.68,11.37177334]
[1766073278492,0.45,127.78,127.71,10.68177334]
[1766073278792,10.68177334,127.77,127.73,0.69]
[1766073278975,10.68177334,127.79,127.74,11.37177334]
[1766073279288,10.68177334,127.79,127.75,0.69]
[1766073279491,10.68177334,127.8,127.76,0.69]
[1766073279791,0.45,127.82,127.76,10.68177334]
[1766073279792,10.68177334,127.81,127.76,10.68177334]
[1766073279994,8.56,127.83,127.77,0.69]
[1766073280195,18.26005291,127.84,127.77,11.37177334]
[1766073280366,10.68177334,127.82,127.77,10.68177334]
[1766073280571,10.68177334,127.8,127.77,0.69]
[1766073281300,10.68177334,127.81,127.77,0.69]
[1766073281503,10.68177334,127.8,127.77,0.69]
[1766073282694,16.5838255,127.82,127.74,18.51002]
[1766073282695,10.68177334,127.79,127.74,18.51002]
[1766073282878,10.68177334,127.76,127.69,39.15594788]
[1766073283079,10.68177334,127.77,127.72,0.69]
[1766073283298,10.68177334,127.78,127.73,11.37177334]
[1766073283504,10.68177334,127.8,127.76,0.69]
[1766073283707,10.68177334,127.79,127.76,0.69]
[1766073284007,9.01,127.81,127.76,0.69]
[1766073284311,10.68177334,127.79,127.76,0.69]
[1766073285186,10.68177334,127.8,127.76,0.69]
[1766073285709,10.68177334,127.81,127.77,0.69]
[1766073285904,21.3194463,127.82,127.78,0.69]
[1766073286207,10.88177334,127.82,127.78,0.69]
[1766073286409,10.68177334,127.81,127.78,0.69]
[1766073286709,10.68177334,127.81,127.78,8.51589103]
[1766073286886,10.88177334,127.82,127.78,8.51589103]
[1766073287406,0.2,127.82,127.79,10.68177334]
[1766073287596,0.2,127.82,127.8,0.69]
[1766073288796,10.68177334,127.84,127.79,18.50679913]
[1766073288997,26.81878285,127.86,127.8,0.69]
[1766073289208,8.80994492,127.88,127.81,0.69]
[1766073289380,10.68177334,127.88,127.83,0.69]